fUST/lending_fUST_20250330
["ID","MTS","AMOUNT","RATE_DAILY","PERIOD"]
[356828173,1743276360053,-1222.60109439,0.00027213,2]
[356828174,1743276360082,-1222.60109439,0.00027213,2]
[356828175,1743276360110,-1222.60109439,0.00027213,2]
[356828176,1743276360137,-1222.60109439,0.00027213,2]
[356828177,1743276360165,-1222.60109439,0.00027213,2]
[356828178,1743276360192,-1222.60109439,0.00027213,2]
[356828179,1743276360223,-1222.60109439,0.00027213,2]
[356828180,1743276360250,-1222.60109439,0.00027213,2]
[356828181,1743276360277,-1222.60109439,0.00027213,2]
[356828182,1743276360304,-1222.60109439,0.00027213,2]
[356828183,1743276360329,-1222.60109439,0.00027213,2]
[356828184,1743276360354,-1222.60109439,0.00027213,2]
[356828185,1743276360380,-1222.60109439,0.00027213,2]
[356828186,1743276360404,-1222.60109439,0.00027213,2]
[356828187,1743276360429,-1222.60109439,0.00027213,2]
[356828188,1743276360454,-1222.60109439,0.00027213,2]
[356828189,1743276360479,-1956.6986319,0.00027213,2]
[356828190,1743276360503,-1956.6986319,0.00027213,2]
[356828191,1743276360527,-1956.6986319,0.00027213,2]
[356828192,1743276360551,-1956.6986319,0.00027213,2]
[356828193,1743276360576,-1956.6986319,0.00027213,2]
[356828194,1743276360599,-1956.6986319,0.00027213,2]
[356828195,1743276360622,-1956.6986319,0.00027213,2]
[356828196,1743276360646,-1956.6986319,0.00027213,2]
[356828197,1743276360670,-1956.6986319,0.00027213,2]
[356828198,1743276360695,-1956.6986319,0.00027213,2]
[356828199,1743276360719,-1956.6986319,0.00027213,2]
[356828200,1743276360744,-1956.6986319,0.00027213,2]
[356828201,1743276360769,-1956.6986319,0.00027213,2]
[356828202,1743276360794,-1956.6986319,0.00027213,2]
[356828203,1743276360820,-1956.6986319,0.00027213,2]
[356828204,1743276360847,-1956.6986319,0.00027213,2]
[356828205,1743276360873,-1956.6986319,0.00027213,2]
[356828206,1743276360901,-1956.6986319,0.00027213,2]
[356828207,1743276360928,-1956.6986319,0.00027213,2]
[356828208,1743276360955,-1956.6986319,0.00027213,2]
[356828209,1743276360985,-1956.6986319,0.00027213,2]
[356828210,1743276361011,-1956.6986319,0.00027213,2]
[356828211,1743276361035,-1956.6986319,0.00027213,2]
[356828212,1743276361060,-1956.6986319,0.00027213,2]
[356828213,1743276361086,-1956.6986319,0.00027213,2]
[356828214,1743276361115,-1956.6986319,0.00027213,2]
[356828215,1743276361140,-1956.6986319,0.00027213,2]
[356828216,1743276361164,-1956.6986319,0.00027213,2]
[356828217,1743276361184,-243.078738,0.00027213,2]
[356828218,1743276361213,-1956.6986319,0.00027213,2]
[356828219,1743276361239,-1956.6986319,0.00027213,2]
[356828220,1743276361265,-1956.6986319,0.00027213,2]
[356828221,1743276361292,-1956.6986319,0.00027213,2]
[356828222,1743276361317,-1956.6986319,0.00027213,2]
[356828223,1743276361338,-2283.22060504,0.00027214,2]
[356828224,1743276361359,-18265.7648403,0.00027236,2]
[356828225,1743276361380,-152.0,0.00027237,2]
[356828226,1743276361401,-409.37621103,0.00027245,4]
[356828227,1743276361423,-9022.61167109,0.00027245,4]
[356828228,1743276361444,-87489.07772613,0.00027246,2]
[356828230,1743276427122,-1584.36249293,0.00027113,2]
[356828231,1743276427143,-222.35155455,0.0002723,2]
[356828232,1743276427163,-300.0,0.00027244,2]
[356828233,1743276427191,-500.0,0.00027245,2]
[356828234,1743276427218,-500.0,0.00027245,2]
[356828235,1743276427248,-500.0,0.00027245,2]
[356828236,1743276427276,-500.0,0.00027245,2]
[356828237,1743276427302,-500.0,0.00027245,2]
[356828238,1743276427328,-500.0,0.00027245,2]
[356828239,1743276427354,-500.0,0.00027245,2]
[356828240,1743276427381,-500.0,0.00027245,2]
[356828241,1743276427408,-500.0,0.00027245,2]
[356828242,1743276427434,-500.0,0.00027245,2]
[356828243,1743276427460,-500.0,0.00027245,2]
[356828244,1743276427486,-500.0,0.00027245,2]
[356828245,1743276427511,-500.0,0.00027245,2]
[356828246,1743276427538,-216.53199676,0.00027245,2]
[356828247,1743276427564,-500.0,0.00027245,2]
[356828248,1743276427590,-500.0,0.00027245,2]
[356828249,1743276427616,-500.0,0.00027245,2]
[356828250,1743276427642,-500.0,0.00027245,2]
[356828251,1743276427667,-500.0,0.00027245,2]
[356828252,1743276427694,-500.0,0.00027245,2]
[356828253,1743276427720,-500.0,0.00027245,2]
[356828254,1743276427749,-500.0,0.00027245,2]
[356828255,1743276427775,-500.0,0.00027245,2]
[356828256,1743276427803,-500.0,0.00027245,2]
[356828257,1743276427829,-500.0,0.00027245,2]
[356828258,1743276427855,-500.0,0.00027245,2]
[356828259,1743276427882,-500.0,0.00027245,2]
[356828260,1743276427911,-500.0,0.00027245,2]
[356828261,1743276427936,-500.0,0.00027245,2]
[356828262,1743276427962,-500.0,0.00027245,2]
[356828263,1743276427988,-500.0,0.00027245,2]
[356828264,1743276428012,-500.0,0.00027245,2]
[356828265,1743276428037,-500.0,0.00027245,2]
[356828266,1743276428062,-500.0,0.00027245,2]
[356828267,1743276428083,-2289.74816976,0.00027246,2]
[356828268,1743276434080,-1306.32059234,0.00027246,2]
[356828269,1743276449390,-224.96049743,0.00027246,2]
[356828270,1743276454114,-100137.31974122,0.00027246,2]
[356828271,1743276454378,173.1562092,0.00013699,2]
[356828277,1743276497821,879.00212668,0.000125,2]
[356828280,1743276561193,-877.13766696,0.00023,2]
[356828328,1743276632410,-1181.76065796,0.00023,2]
[356828330,1743276632421,-703.91250108,0.00023,2]
[356828331,1743276632430,-418.66406265,0.00023824,2]
[356828333,1743276632439,-300.0,0.00023999,2]
[356828335,1743276632449,-816.62796977,0.00024,30]
[356828336,1743276632461,-95392.57846478,0.00024,30]
[356828338,1743276632470,-1386.31718127,0.000249,2]
[356828339,1743276632480,-500.0,0.00024973,2]
[356828340,1743276632490,-500.0,0.00024973,2]
[356828341,1743276632499,-500.0,0.00024973,2]
[356828342,1743276632508,-500.0,0.00024973,2]
[356828343,1743276632518,-500.0,0.00024973,2]
[356828344,1743276632527,-62263.83375386,0.00025,2]
[356828345,1743276632539,-6333.67103448,0.00025,2]
[356828346,1743276632562,-110059.40943382,0.00025,2]
[356828347,1743276632573,-267031.41196349,0.00025,2]
[356828348,1743276632584,-3314.29308636,0.00025,2]
[356828357,1743276638646,-500.0,0.00023999,2]
[356828358,1743276638656,-500.0,0.00023999,2]
[356828359,1743276638666,-500.0,0.00023999,2]
[356828360,1743276638675,-500.0,0.00023999,2]
[356828361,1743276638684,-171.65319968,0.00023999,2]
[356828362,1743276638693,-25406.85901232,0.00025,2]
[356828363,1743276639047,-23055.01349114,0.00025,2]
[356828364,1743276640392,-2535.50822353,0.00025,2]
[356828365,1743276640402,-420.0,0.00026026,2]
[356828366,1743276640412,-697.7099088,0.0002625,2]
[356828367,1743276640422,-2511.54266554,0.00027236,2]
[356828368,1743276640431,-178552.57327312,0.00027246,2]
[356828369,1743276640440,-500.0,0.00027273,2]
[356828370,1743276640450,-500.0,0.00027273,2]
[356828371,1743276640459,-500.0,0.00027273,2]
[356828372,1743276640469,-500.0,0.00027397,5]
[356828373,1743276640479,-151.0,0.000275,15]
[356828374,1743276640489,-151.0,0.000276,20]
[356828375,1743276640499,-151.0,0.000277,11]
[356828376,1743276640508,-2500.0,0.00027746,3]
[356828377,1743276640518,-1697.4619647,0.00027746,3]
[356828378,1743276640528,-151.0,0.000278,12]
[356828379,1743276640537,-151.0,0.000278,17]
[356828380,1743276640547,-12119.12846144,0.00027829,2]
[356828381,1743276640556,-1255.77133277,0.00027838,2]
[356828382,1743276640566,-500.0,0.00027855,5]
[356828383,1743276640575,-151.0,0.000279,14]
[356828384,1743276640585,-566.17728459,0.00027931,2]
[356828385,1743276640594,-500.0,0.00027973,5]
[356828386,1743276640604,-500.0,0.00027973,5]
[356828387,1743276640613,-500.0,0.00027973,5]
[356828388,1743276640622,-500.0,0.00027973,5]
[356828389,1743276640632,-151.0,0.00027983,2]
[356828390,1743276640641,-622.2,0.00027983,2]
[356828391,1743276640651,-17580.7986588,0.0002799,2]
[356828392,1743276640660,-4511.30583554,0.00028,4]
[356828393,1743276640669,-204.68810552,0.00028,4]
[356828394,1743276640678,-692100.0,0.00028,2]
[356828395,1743276640688,-288.6096,0.00028,7]
[356828396,1743276640698,-288.6096,0.00028,7]
[356828397,1743276640707,-1250.409149,0.00028,2]
[356828398,1743276640716,-1250.409149,0.00028,2]
[356828399,1743276640726,-500.0,0.00028,2]
[356828400,1743276640735,-500.0,0.00028,5]
[356828401,1743276640745,-500.0,0.00028,5]
[356828402,1743276640755,-500.0,0.00028,5]
[356828403,1743276640764,-645.2214,0.00028038,2]
[356828404,1743276640774,-1181.4388074,0.00028051,30]
[356828405,1743276640783,-187.5819137,0.00028051,30]
[356828406,1743276640792,-187.5819137,0.00028051,30]
[356828407,1743276640802,-187.5819137,0.00028051,30]
[356828408,1743276640811,-1255.77133277,0.00028083,2]
[356828409,1743276640821,-1200.0,0.00028093,2]
[356828410,1743276640831,-587.0,0.00028223,2]
[356828411,1743276640840,-1386.31718125,0.00028271,2]
[356828412,1743276640850,-67010.26627087,0.000285,2]
[356828413,1743276640873,-26587.82001342,0.000285,2]
[356828414,1743276640883,-500.0,0.00028607,2]
[356828415,1743276640892,-500.0,0.0002863,2]
[356828416,1743276640903,-500.0,0.00028744,2]
[356828417,1743276640912,-500.0,0.0002879,2]
[356828418,1743276640921,-150.0,0.000288,3]
[356828419,1743276640931,-8603.30381536,0.00028826,2]
[356828425,1743276643281,-401.0,0.00026806,2]
[356828427,1743276643292,-784.35241594,0.00028826,2]
[356828431,1743276646322,-2345.888246,0.00028826,2]
[356828432,1743276646336,-8213.35216192,0.00028826,2]
[356828433,1743276646346,-500.0,0.00028873,5]
[356828434,1743276646356,-500.0,0.00028873,5]
[356828435,1743276646366,-500.0,0.00028873,5]
[356828436,1743276646378,-187.5819137,0.00028873,30]
[356828437,1743276646389,-187.5819137,0.00028873,30]
[356828438,1743276646399,-171.8184033,0.00028876,30]
[356828439,1743276646409,-29515.35904508,0.0002888,2]
[356828440,1743276646419,-500.0,0.00028884,2]
[356828441,1743276646429,-5000.0,0.00028915,2]
[356828442,1743276646438,-800.0,0.00028993,2]
[356828443,1743276646447,-313.21770237,0.00029,2]
[356828444,1743276646457,-100000.0,0.00029,2]
[356828445,1743276646467,-196.0,0.00029,2]
[356828446,1743276646477,-2200.0,0.00029005,2]
[356828447,1743276646487,-198945.47326552,0.00029045,2]
[356828448,1743276646500,-342.00530051,0.00029045,2]
[356828449,1743276646537,-6197.52143397,0.00029045,2]
[356828450,1743276646547,-500.0,0.00029066,2]
[356828451,1743276646557,-500.0,0.00029124,2]
[356828452,1743276646567,-2200.0,0.00029261,2]
[356828453,1743276646577,-500.0,0.00029325,2]
[356828454,1743276646587,-1255.77133277,0.00029469,2]
[356828455,1743276646597,-1250.409149,0.00029479,2]
[356828456,1743276646609,-1250.409149,0.00029479,2]
[356828457,1743276646618,-304.05218559,0.00029532,2]
[356828471,1743277550497,172.863905,0.00013699,2]
[356828472,1743277632143,-170.33340249,0.00024933,2]
[356828473,1743277632165,-300.0,0.00024939,2]
[356828474,1743277632186,-622.2,0.0002494,2]
[356828475,1743277632207,-523.39371292,0.0002494,2]
[356828476,1743277649229,-363.66515611,0.00024938,2]
[356828477,1743277653116,-12095.27304535,0.00024938,2]
[356828478,1743277653138,-160.0,0.0002494,2]
[356828479,1743277653163,-160.0,0.00024943,2]
[356828480,1743277653186,-151.0,0.00024953,2]
[356828481,1743277653208,-285.30742591,0.00024994,2]
[356828482,1743277653235,-500.0,0.00024994,2]
[356828483,1743277653260,-500.0,0.00024994,2]
[356828484,1743277653284,-500.0,0.00024994,2]
[356828485,1743277653307,-500.0,0.00024994,2]
[356828486,1743277653330,-500.0,0.00024994,2]
[356828487,1743277653353,-500.0,0.00024994,2]
[356828488,1743277653377,-500.0,0.00024994,2]
[356828489,1743277653400,-500.0,0.00024994,2]
[356828490,1743277653424,-500.0,0.00024994,2]
[356828491,1743277653448,-500.0,0.00024994,2]
[356828492,1743277653471,-500.0,0.00024994,2]
[356828493,1743277653495,-500.0,0.00024994,2]
[356828494,1743277653519,-500.0,0.00024994,2]
[356828495,1743277653542,-500.0,0.00024994,2]
[356828496,1743277653566,-384.85039841,0.00024994,2]
[356828497,1743277653591,-500.0,0.00024994,2]
[356828498,1743277653615,-500.0,0.00024994,2]
[356828499,1743277653640,-977.01123784,0.00024995,2]
[356828500,1743277653662,-1999.999999,0.00025,14]
[356828501,1743277653682,-500.0,0.00026067,2]
[356828502,1743277653706,-310.7700757,0.00026578,2]
[356828503,1743277653728,-420.0,0.00027019,2]
[356828504,1743277653750,-401.0,0.00027269,2]
[356828505,1743277653772,-5046.8631139,0.00027553,2]
[356828506,1743277653793,-313.692349,0.00028083,2]
[356828507,1743277653814,-500.0,0.00028196,2]
[356828508,1743277653835,-800.0,0.00028411,2]
[356828509,1743277653856,-800.0,0.00028418,2]
[356828510,1743277653877,-500.0,0.00028724,5]
[356828511,1743277653898,-500.0,0.00028724,5]
[356828512,1743277653919,-500.0,0.00028724,5]
[356828513,1743277653940,-500.0,0.00028724,5]
[356828514,1743277653961,-187.5819137,0.00028955,30]
[356828515,1743277653982,-187.5819137,0.00028955,30]
[356828516,1743277654004,-161.0902187,0.00028955,30]
[356828517,1743277654026,-2000.0,0.00029008,2]
[356828518,1743277654050,-500.0,0.0002902,5]
[356828519,1743277654069,-500.0,0.0002902,5]
[356828520,1743277654091,-500.0,0.00029035,5]
[356828521,1743277654113,-500.0,0.00029035,5]
[356828522,1743277654135,-2000.0,0.00029075,2]
[356828523,1743277654157,-240.24683501,0.00029185,2]
[356828524,1743277654179,-587.0,0.00029272,2]
[356828525,1743277654201,-2000.0,0.00029291,2]
[356828526,1743277654223,-418.66406265,0.00029339,2]
[356828527,1743277654244,-183.72625204,0.00029351,2]
[356828528,1743277654266,-500.0,0.00029402,2]
[356828529,1743277654288,-800.0,0.00029551,2]
[356828530,1743277654310,-500.0,0.00029725,2]
[356828531,1743277654331,-300.31060716,0.000298,2]
[356828532,1743277654353,-500.0,0.00029818,2]
[356828533,1743277654374,-500.0,0.00029825,2]
[356828534,1743277654394,-223.02351841,0.0002987,2]
[356828535,1743277654416,-500.0,0.00029873,5]
[356828536,1743277654438,-500.0,0.00029873,5]
[356828537,1743277654459,-418.59044428,0.0002989,2]
[356828538,1743277654481,-235278.19789694,0.000299,2]
[356828563,1743277832540,-401.0,0.00027306,2]
[356828564,1743277832550,-500.0,0.00027397,5]
[356828565,1743277832559,-313.69235,0.00027874,2]
[356828566,1743277832570,-500.0,0.00029869,2]
[356828567,1743277832579,-500.0,0.00029869,2]
[356828568,1743277832588,-1064.78614921,0.0002987,2]
[356828569,1743277832598,-12458.93820146,0.0002987,2]
[356828570,1743277832608,-134721.80210306,0.000299,2]
[356828571,1743277832617,-12734.7617394,0.0002997,2]
[356828572,1743277832627,-500.0,0.00029973,5]
[356828573,1743277832636,-500.0,0.00029973,5]
[356828574,1743277832645,-500.0,0.00029973,5]
[356828575,1743277832655,-180.72465033,0.00029973,5]
[356828576,1743277832664,-500.0,0.00029973,5]
[356828577,1743277832676,-500.0,0.00029973,5]
[356828578,1743277832687,-500.0,0.00029973,2]
[356828579,1743277832698,-500.0,0.00029973,5]
[356828580,1743277832707,-635.96821789,0.00029973,5]
[356828581,1743277832717,-500.0,0.00029973,5]
[356828582,1743277832728,-500.0,0.00029988,2]
[356828583,1743277832737,-178.44854126,0.0002999,2]
[356828584,1743277832747,-500.0,0.0002999,2]
[356828585,1743277832756,-150.32,0.0002999,2]
[356828586,1743277832766,-159.23873929,0.0002999,2]
[356828587,1743277832775,-150.32,0.0002999,2]
[356828588,1743277832785,-500.0,0.0002999,2]
[356828589,1743277832795,-500.0,0.0002999,2]
[356828590,1743277832804,-500.0,0.0002999,2]
[356828591,1743277832813,-150.32,0.0002999,2]
[356828592,1743277832826,-150.68008027,0.0002999,2]
[356828593,1743277832836,-800.0,0.00029996,2]
[356828594,1743277832847,-380.48773145,0.00029998,4]
[356828595,1743277832857,-1500.0,0.0003,2]
[356828596,1743277832866,-1500.0,0.0003,2]
[356828597,1743277832876,-1500.0,0.0003,2]
[356828598,1743277832886,-1500.0,0.0003,2]
[356828599,1743277832896,-1500.0,0.0003,2]
[356828600,1743277832906,-1500.0,0.0003,2]
[356828601,1743277832917,-1210.19,0.0003,2]
[356828602,1743277832926,-1500.0,0.0003,2]
[356828603,1743277832936,-1000.0,0.0003,2]
[356828604,1743277832946,-1000.0,0.0003,2]
[356828605,1743277832955,-1500.0,0.0003,2]
[356828606,1743277832964,-300.0,0.0003,7]
[356828607,1743277832974,-2500.0,0.0003,2]
[356828608,1743277832983,-2115.2,0.0003,2]
[356828609,1743277832993,-4185.91228262,0.0003,2]
[356828610,1743277833002,-2000.0,0.0003,2]
[356828611,1743277833012,-2000.0,0.0003,2]
[356828612,1743277833022,-500.0,0.0003,2]
[356828613,1743277833032,-156.0,0.0003,2]
[356828614,1743277833042,-13839.30286894,0.0003,7]
[356828615,1743277833053,-2076.04,0.0003,2]
[356828616,1743277833063,-6820.05585064,0.0003,30]
[356828617,1743277833075,-1511.97636479,0.0003,7]
[356828618,1743277833086,-228.0,0.0003,2]
[356828619,1743277833096,-2000.0,0.00030031,7]
[356828620,1743277833106,-2000.0,0.000301,2]
[356828621,1743277833117,-500.0,0.00030127,2]
[356828622,1743277833128,-170.10514882,0.00030127,2]
[356828623,1743277833137,-246.63317386,0.00030127,2]
[356828624,1743277833148,-500.0,0.00030127,2]
[356828625,1743277833158,-500.0,0.00030127,2]
[356828626,1743277833168,-500.0,0.00030127,2]
[356828627,1743277833179,-150.54405372,0.00030127,2]
[356828628,1743277833189,-500.0,0.00030127,2]
[356828629,1743277833199,-150.32,0.00030127,2]
[356828630,1743277833209,-150.32,0.00030127,2]
[356828631,1743277833219,-199.83293275,0.00030127,2]
[356828632,1743277833229,-500.0,0.00030127,2]
[356828633,1743277833239,-840.84378454,0.00030264,2]
[356828634,1743277833250,-500.0,0.00030264,2]
[356828635,1743277833261,-500.0,0.00030264,2]
[356828636,1743277833271,-500.0,0.00030264,2]
[356828637,1743277833282,-775.74411914,0.00030264,2]
[356828638,1743277833292,-150.32,0.00030264,2]
[356828639,1743277833302,-150.32,0.00030264,2]
[356828640,1743277833312,-401.0,0.00030306,2]
[356828641,1743277833324,-500.0,0.00030328,7]
[356828642,1743277833334,-588.28240872,0.00030401,2]
[356828643,1743277833344,-500.0,0.00030401,2]
[356828644,1743277833355,-656.74289297,0.00030401,2]
[356828645,1743277833366,-201.14297628,0.00030401,2]
[356828646,1743277833376,-202.27003454,0.00030401,2]
[356828647,1743277833386,-500.0,0.00030412,7]
[356828648,1743277833396,-500.0,0.00030486,7]
[356828649,1743277833407,-500.0,0.0003055,7]
[356828650,1743277833417,-800.0,0.00030686,7]
[356828651,1743277833427,-2000.0,0.00030794,7]
[356828652,1743277833436,-800.0,0.00030906,7]
[356828653,1743277833446,-2000.0,0.00030915,7]
[356828654,1743277833456,-300.56241713,0.0003099,2]
[356828655,1743277833466,-500.0,0.00031,2]
[356828656,1743277833476,-2000.0,0.00031,4]
[356828657,1743277833485,-2000.0,0.00031,4]
[356828658,1743277833495,-2000.0,0.000311,5]
[356828659,1743277833505,-1000.0,0.00031546,5]
[356828660,1743277833515,-500.0,0.00031604,7]
[356828661,1743277833525,-2000.0,0.00031715,7]
[356828662,1743277833535,-451.82918826,0.000318,7]
[356828663,1743277833545,-500.0,0.00031818,7]
[356828664,1743277833555,-160.0,0.0003187,3]
[356828665,1743277833564,-800.0,0.00031874,7]
[356828666,1743277833575,-2000.0,0.00031928,7]
[356828667,1743277833585,-1000.0,0.00032,120]
[356828668,1743277833595,-2500.0,0.00032,2]
[356828669,1743277833605,-260.5550566,0.00032,14]
[356828670,1743277833616,-898.8,0.00032,7]
[356828671,1743277833625,-898.799999,0.00032,7]
[356828672,1743277833635,-500.0,0.00032058,5]
[356828673,1743277833645,-800.0,0.00032064,7]
[356828674,1743277833655,-898.799999,0.000321,7]
[356828675,1743277833664,-500.0,0.00032137,7]
[356828676,1743277833674,-2000.0,0.00032196,7]
[356828677,1743277833688,-500.0,0.00032286,7]
[356828678,1743277833697,-500.0,0.00032292,5]
[356828679,1743277833708,-2000.0,0.00032303,7]
[356828680,1743277833719,-500.0,0.00032355,5]
[356828681,1743277833729,-2000.0,0.00032367,7]
[356828682,1743277833739,-500.0,0.00032388,5]
[356828683,1743277833748,-500.0,0.00032477,7]
[356828684,1743277833761,-2000.0,0.00032504,7]
[356828685,1743277833772,-1064.78614919,0.00032513,2]
[356828686,1743277833782,-505.01074289,0.0003262,5]
[356828687,1743277833793,-500.0,0.0003262,5]
[356828688,1743277833803,-504.62126334,0.00032709,5]
[356828689,1743277833813,-500.0,0.00032709,5]
[356828690,1743277833824,-500.0,0.00032709,5]
[356828691,1743277833834,-500.0,0.00032709,5]
[356828692,1743277833844,-500.0,0.00032709,5]
[356828693,1743277833855,-500.0,0.00032709,5]
[356828694,1743277833864,-500.0,0.00032709,5]
[356828695,1743277833873,-501.80719738,0.00032722,7]
[356828696,1743277833883,-331.77784595,0.00032738,5]
[356828697,1743277833893,-502.36644167,0.00032738,5]
[356828698,1743277833903,-500.0,0.00032835,7]
[356828699,1743277833913,-1000.0,0.00032877,120]
[356828700,1743277833923,-1000.0,0.00032877,30]
[356828701,1743277833934,-1000.0,0.00032877,30]
[356828702,1743277833944,-500.0,0.00032877,2]
[356828703,1743277833953,-500.0,0.00032877,2]
[356828704,1743277833963,-1055.78394233,0.00032877,5]
[356828705,1743277833972,-1000.0,0.00032877,5]
[356828706,1743277833982,-150.27,0.00032877,2]
[356828707,1743277833992,-41757.67436695,0.00033,14]
[356828728,1743277838191,-4037.2516881,0.00033,14]
[356828740,1743277846205,-487.20559982,0.00029869,2]
[356828741,1743277846216,-89.54540018,0.00030401,2]
[356828742,1743277846830,-410.45459982,0.00030401,2]
[356828743,1743277846839,-500.0,0.00030538,2]
[356828744,1743277846849,-500.0,0.00030675,2]
[356828745,1743277846859,-500.0,0.00030812,2]
[356828746,1743277846868,-500.0,0.00030949,2]
[356828747,1743277846878,-500.0,0.00031086,2]
[356828748,1743277846887,-500.0,0.00031223,2]
[356828749,1743277846896,-500.0,0.0003136,2]
[356828750,1743277846906,-500.0,0.00031497,2]
[356828751,1743277846916,-805.92461455,0.00031634,2]
[356828752,1743277846925,-26482.7075976,0.00033,14]
[356828753,1743277933293,163.82582597,0.00025,120]
[356828761,1743278829136,-401.0,0.00027604,2]
[356828762,1743278829159,-162.594042,0.00028503,2]
[356828763,1743278829180,-139.71179551,0.00028858,2]
[356828766,1743278844217,-1200.0,0.00028451,2]
[356828767,1743278844237,-343.85554718,0.00028553,2]
[356828771,1743279008481,173.015388,0.00013699,2]
[356828790,1743279038282,-500.0,0.00027397,5]
[356828791,1743279038292,-401.0,0.0002802,2]
[356828792,1743279038301,-1007.7514694,0.00028243,2]
[356828793,1743279038310,-231.535838,0.0002832,2]
[356828794,1743279038319,-156.14445282,0.00028553,2]
[356828795,1743279038327,-316.88167363,0.0002864,2]
[356828796,1743279038339,-283.11832637,0.0002864,2]
[356828797,1743279038347,-756.76650554,0.00028669,2]
[356828798,1743279038357,-1200.0,0.00028803,2]
[356828799,1743279038366,-4455.42583347,0.00028834,2]
[356828800,1743279038375,-500.0,0.00029172,2]
[356828801,1743279038384,-1375.9747711,0.00029211,30]
[356828802,1743279038393,-600.0,0.00029342,2]
[356828803,1743279038402,-500.0,0.00029396,2]
[356828804,1743279038411,-500.0,0.00029396,2]
[356828805,1743279038421,-500.0,0.00029396,2]
[356828806,1743279038431,-500.0,0.00029396,2]
[356828807,1743279038440,-500.0,0.00029396,2]
[356828808,1743279038450,-500.0,0.00029396,2]
[356828809,1743279038459,-500.0,0.00029396,2]
[356828810,1743279038468,-500.0,0.00029396,2]
[356828811,1743279038477,-604.0348405,0.00029396,2]
[356828812,1743279038487,-1200.0,0.00029467,2]
[356828813,1743279038496,-500.0,0.00029654,2]
[356828814,1743279038505,-237.41048766,0.00029758,2]
[356828815,1743279038514,-500.0,0.00029773,5]
[356828816,1743279038523,-500.0,0.00029773,5]
[356828817,1743279038532,-500.0,0.00029773,5]
[356828818,1743279038542,-500.0,0.00029773,5]
[356828819,1743279038551,-500.0,0.00029773,5]
[356828820,1743279038560,-151.0,0.00029782,2]
[356828821,1743279038569,-313.94283321,0.0002979,2]
[356828822,1743279038578,-771.3,0.0002979,3]
[356828823,1743279038588,-795.49487677,0.000298,4]
[356828824,1743279038599,-270.13541551,0.000298,4]
[356828825,1743279038610,-396.30894773,0.000298,4]
[356828882,1743279040582,-793.71367776,0.000298,4]
[356828883,1743279040820,-204.68810551,0.000298,4]
[356828884,1743279040843,-933.69821677,0.000298,2]
[356828903,1743279043507,-469.01916942,0.000298,2]
[356828904,1743279043519,-469.12640292,0.000298,2]
[356828905,1743279043530,-4807.82993701,0.000298,2]
[356828950,1743279140332,-270.18960919,0.00027397,5]
[356828951,1743279153962,-202.39100001,0.00027397,5]
[356828953,1743279182502,-27.4193908,0.00027397,5]
[356828954,1743279182524,-145.21905005,0.00028385,2]
[356828955,1743279204571,-264.2396,0.00028385,2]
[356828956,1743279222109,-90.54134995,0.00028385,2]
[356828957,1743279222134,-90.7703592,0.00028511,2]
[356828959,1743279246408,-234.0697124,0.00027397,5]
[356828960,1743279266930,-163.52865105,0.00027397,5]
[356828961,1743279273630,-102.40163655,0.00027397,5]
[356828962,1743279273653,-386.63385901,0.00028511,2]
[356828963,1743279283672,-172.63844085,0.00027297,60]
[356828964,1743279283696,-22.59578179,0.00028511,2]
[356828965,1743279283718,-104.76577736,0.00028636,2]
[356828966,1743279305438,-200.0,0.00028184,2]